Cogmind - Beta 17.1 @@@ ROGUE MODE // 2026.08.31 @ 19:55:34 Player: eph7ra Result: Destroyed by G-47 Trooper via exploding Nuclear Reactor Performance ------------- Evolutions (0) 0 Regions Visited (1) 200 Robots Destroyed (6) 30 Value Destroyed (204) 204 Prototype IDs (0) 0 Alien Tech Used (0) 0 Bonus (0) 0 TOTAL SCORE: 434 Bonus ------- None Cogmind --------- Core Integrity 0/250 Matter 250/300 Energy 78/250 System Corruption 1% Temperature Cool (63) Movement Treading (160) Location -10/Materials Parts ------- > --- POWER (1) -------- Ion Engine > --- PROPULSION (2) --- Light Treads Light Treads > --- UTILITY (2) ------ Large Storage Unit > --- WEAPON (2) ------- EM Pulse Gun EM Pulse Gun > --- INVENTORY (15) --- Aluminum Leg Wheel Compact Wheel Small Storage Unit Targeting Computer Peak State ------------ > --- POWER ------------ Light Ion Engine > --- PROPULSION ------- Aluminum Leg Aluminum Leg > --- UTILITY ---------- Small Storage Unit Weapon Shielding > --- WEAPON ----------- Spread Laser Assault Rifle > --- INVENTORY -------- Ion Engine Light Treads Light Treads Aluminum Leg Wheel Compact Wheel EM Pulse Gun EM Pulse Gun [Rating: 8] Favorites ----------- Power Ion Engine Engine Ion Engine Propulsion Aluminum Leg Treads Light Treads Leg Aluminum Leg Utility Weapon Shielding Storage Small Storage Unit Protection Weapon Shielding Weapon Assault Rifle Energy Gun Spread Laser Ballistic Gun Assault Rifle Build | -11 -10 ------- Run | Yrd Mat Slots Evolved . | . . Power . | . . Propulsion . | . . Utility . | . . Weapon . | . . Parts Attached 14 | 6 8 Power 3 | 1 2 Engine 3 | 1 2 Core . | . . Reactor . | . . Propulsion 4 | 2 2 Treads 2 | . 2 Leg 2 | 2 . Wheel . | . . Hover . | . . Flight . | . . Utility 3 | 1 2 Device . | . . Storage 2 | 1 1 Processor . | . . Hackware . | . . Protection 1 | . 1 Artifact . | . . Weapon 4 | 2 2 Energy Gun 3 | 1 2 Energy Cannon . | . . Ballistic Gun 1 | 1 . Ballistic Cannon . | . . Launcher . | . . Special Weapon . | . . Impact Weapon . | . . Slashing Weapon . | . . Piercing Weapon . | . . Special Melee Weapon . | . . Unidentified Prototypes . | . . Parts Lost 7 | . 7 Power 2 | . 2 Propulsion 2 | . 2 Utility 1 | . 1 Weapon 2 | . 2 Highest Loss Streak 6 | . 6 To Critical Strikes . | . . Average Backups 7 | 4 7 Power . | . . Propulsion 4 | 3 4 Utility . | . . Weapon 1 | . 1 Tool/Special . | . . Unused Backups 4 | . 4 Power . | . . Propulsion 3 | . 3 Utility 1 | . 1 Weapon . | . . Tool/Special . | . . Average Slot Usage (%) 93 | . 93 Engine 12 | . 12 Treads 1 | . 1 Leg 25 | . 25 Storage 14 | . 14 Protection 10 | . 10 Energy Gun 14 | . 14 Ballistic Gun 12 | . 12 Peak Build Rating 8 | 6 8 Average Rating 7 | 4 7 On Entrance 3 | . 6 Avg Prop Armor Cover (%) . | . . Naked Turns . | . . Heaviest Build 31 | 12 31 Greatest Support 40 | 20 40 Greatest Overweight (x) 9 | 3 9 Average Overweight (x) . | . . Largest Inventory Capacity 15 | 8 15 Average Capacity 10 | 7 11 Most Carried 9 | 6 9 Average Carried 7 | 4 7 Final Capacity 15 | 8 15 Final Carried 6 | 6 5 Class Distribution -------------------- 100% | Mutant Dominant Class ---------------- Mutant | -10/Materials Resources | -11 -10 ----------- Run | Yrd Mat Matter Collected 310 | 218 92 Remotely . | . . Salvage Created 233 | . 233 Parts 14 | . 14 Haulers Intercepted . | . . Recyclers Shooed 1 | . 1 Parts Field Recycled . | . . Retrieved Matter . | . . Parts Self-Destructed . | . . Prevented . | . . Parts Restored . | . . Kills | -11 -10 ------- Run | Yrd Mat Combat Hostiles Destroyed 6 | . 6 Guns 6 | . 6 Classes Destroyed 1 | . 1 Grunt 6 | . 6 Best Kill Streak 2 | . 2 Combat Bots Only 2 | . 2 Max Kills in Single Turn 1 | . 1 Gunslinging . | . . Exploded . | . . Melee . | . . Uniques/NPCs Destroyed . | . . Combat | -11 -10 -------- Run | Yrd Mat Hostile Shots Fired 96 | . 96 Missed 21 | . 21 Hits 75 | . 75 Projectile 75 | . 75 AOE 1 | . 1 Damage Taken 971 | . 971 Core 284 | . 284 Absorbed by Shields . | . . Redirected to Shielding 52 | . 52 Core Remaining (%) 100 | 100 . Volleys Fired 15 | . 15 Largest 2 | . 2 Hottest 85 | . 85 Shots Fired 30 | . 30 Gun 30 | . 30 Cannon . | . . Launcher . | . . Special . | . . Kinetic 11 | . 11 Thermal 11 | . 11 Explosive . | . . Electromagnetic 8 | . 8 Robot Hit Streak 7 | . 7 Robot Miss Streak 5 | . 5 Penetration Max . | . . Secondary Targets 3 | . 3 Max Gunslinging Chain 1 | . 1 Shots Hit Robots 24 | . 24 Core Hits 21 | . 21 Critical Kills . | . . Critical Parts Destroyed . | . . Critical Strikes . | . . Melee Attacks . | . . Impact . | . . Slashing . | . . Piercing . | . . Sneak Attacks . | . . Combat Hostiles . | . . Follow-up Attacks . | . . Damage Inflicted 337 | . 337 Guns 316 | . 316 Cannons . | . . Explosions . | . . Melee . | . . Ramming 21 | . 21 Kinetic 94 | . 94 Thermal 149 | . 149 Explosive . | . . Electromagnetic 73 | . 73 Impact . | . . Slashing . | . . Piercing . | . . Highest Corruption 1 | . 1 Average Corruption 1 | . 1 Corruption Purged . | . . Corruption Blocked . | . . Overload Shots . | . . Overflow Damage . | . . Projectiles . | . . Explosions . | . . Melee . | . . Knockbacks . | . . Impact . | . . Kinetic . | . . Secondary . | . . Self-Inflicted Damage . | . . Shots . | . . Rammed 1 | . 1 Targets Rammed 7 | 1 6 Kicked 6 | 1 5 Crushed . | . . Highest Temperature 144 | . 144 Average Temperature 69 | . 69 Received Heat Transfer 510 | . 510 Siege Activations . | . . Martial Activations . | . . Shielding Activations . | . . Robots Disrupted . | . . Combat Hostiles . | . . Robots Corrupted . | . . Combat Hostiles . | . . Parts Fried . | . . Impact Corruptions . | . . Robots Melted . | . . Combat Hostiles . | . . Parts Melted . | . . Heat Transferred 185 | . 185 Parts Sabotaged . | . . Parts Stolen . | . . Parts Stripped . | . . Power Chain Reactions . | . . Alert | -11 -10 ------- Run | Yrd Mat Maximum Alert Level . | . . Low Security (%) 100 | 100 100 Level 1 . | . . Level 2 . | . . Level 3 . | . . Level 4 . | . . Level 5 . | . . High Security . | . . Max Security . | . . Peak Influence 70 | . 70 Initial . | . . Average 10 | . 12 Influence Increases 149 | . 149 Destroy 0b10 Robot/C 120 | . 120 Destroy Leader 20 | . 20 Successful Hack 9 | . 9 Influence Decreases 99 | . 99 Time Decay 89 | . 89 Lost Part 10 | . 10 Squads Dispatched 2 | . 2 Investigation . | . . Extermination . | . . Reinforcement 2 | . 2 Assault . | . . Garrison . | . . Intercept . | . . Searches Triggered . | . . Construction Impeded . | . . Haulers Reinforced . | . . Active Scanning Responses . | . . Cargo Convoy Interrupts . | . . Stealth | -11 -10 --------- Run | Yrd Mat Distress Signals 1 | . 1 Communications Jammed . | . . Distress Signals . | . . Times Spotted 15 | . 15 Peak Tracking Total 9 | . 9 Tactical Retreats . | . . Traps | -11 -10 ------- Run | Yrd Mat Traps Triggered 1 | . 1 Indirectly . | . . Trap Hack Attempts . | . . Triggered . | . . Disarmed . | . . Reprogrammed . | . . Reused . | . . Traps Extracted . | . . Installed . | . . Triggered . | . . Machines | -11 -10 ---------- Run | Yrd Mat Machines Disabled . | . . Max in Single Turn . | . . Machines Repaired . | . . Machines Dismantled . | . . Machines Sabotaged . | . . Overloaded Fab Kills . | . . Hacking | -11 -10 --------- Run | Yrd Mat Machines Accessed 1 | . 1 Terminals 1 | . 1 Fabricators . | . . Repair Stations . | . . Recycling Units . | . . Scanalyzers . | . . Garrison Access . | . . Total Hacks 1 | . 1 Successful 1 | . 1 Failed . | . . Catastrophic . | . . Database Lockouts . | . . Manual 1 | . 1 Terminals 1 | . 1 Fabricators . | . . Repair Stations . | . . Recycling Units . | . . Scanalyzers . | . . Garrison Access . | . . Terminal Hacks 1 | . 1 Level Access Points 1 | . 1 Fabricator Hacks . | . . Repair Station Hacks . | . . Recycling Unit Hacks . | . . Scanalyzer . | . . Garrison Access Hacks . | . . Unauthorized Hacks . | . . Terminals . | . . Fabricators . | . . Repair Stations . | . . Recycling Units . | . . Scanalyzers . | . . Garrison Access . | . . Data Cores Recovered . | . . Used . | . . Hacking Detections . | . . Full Trace Events . | . . Feedback Events . | . . Feedback Blocked . | . . Robot Schematics Acquired . | . . Robots Built . | . . Authchips . | . . Time . | . . Total Robot Build Rating . | . . Part Schematics Acquired . | . . Parts Built . | . . Authchips . | . . Time . | . . Total Part Build Rating . | . . Part Studies Acquired . | . . Parts Repaired . | . . Time . | . . Parts Recycled . | . . Recycled Matter . | . . Retrieved Matter . | . . Retrieved Components . | . . Parts Scanalyzed . | . . Part Schematics Acquired . | . . Parts Damaged . | . . Bothacking | -11 -10 ------------ Run | Yrd Mat Used RIF Installer . | . . Robots Hacked . | . . Non-combat . | . . Combat . | . . Robot Hacks Applied . | . . Relay Couplers Released . | . . Fabnet Peak Effective % . | . . Robots Rewired . | . . Allies Hacked . | . . Hacks Repelled . | . . Allies | -11 -10 -------- Run | Yrd Mat Total Allies . | . . Largest Group . | . . Highest-Rated Group . | . . Highest-Rated Ally . | . . Total Orders . | . . Ally Attacks . | . . Total Damage . | . . Kills . | . . Allies Corrupted . | . . Allies Melted . | . . Intel | -11 -10 ------- Run | Yrd Mat Active Infowar (turns) . | . . Robot Analysis Total . | . . Derelict Logs Recovered . | . . Drone Launches . | . . Drone Recoveries . | . . Exploration | -11 -10 ------------- Run | Yrd Mat Turns Passed 548 | 60 488 Spaces Moved 328 | 42 286 Core 17 | 15 2 Treads 11 | . 11 Legs 300 | 27 273 Wheels . | . . Hover . | . . Flight . | . . Fastest Speed 50 | 50 120 Average Speed 140 | 105 145 Slowest Speed 500 | 200 500 Overloaded Moves . | . . Propulsion Burnouts . | . . Robots Hopped . | . . Potential Cave-ins . | . . Cave-ins Triggered . | . . Exploration Rate (%) 29 | 3 56 Regions Visited 1 Branch Regions . Pre-discovered Areas . | . . Known Exits Taken . | . . Unknown Exits Taken 1 | 1 . Scrap Searched . | . . Spaces Dug . | . . Terrain Destroyed . | . . Melee . | . . Projectile . | . . AOE . | . . Terrain Rammed . | . . Walls Destroyed . | . . Machines Disabled . | . . Actions | -11 -10 --------- Run | Yrd Mat Total 373 | 54 319 Wait . | . . Move 328 | 42 286 Hop . | . . Pick Up 9 | 6 3 Fast Attach 8 | 6 2 Attach 5 | . 5 Detach . | . . Swap 2 | . 2 Drop . | . . Fire 15 | . 15 Melee . | . . Ram 1 | . 1 Kick 5 | . 5 Crush . | . . Escape Stasis . | . . Rewire . | . . Trap . | . . Miscellaneous . | . . Route ------- -11/Scrapyard -10/Materials (discovered 4 exits: *Mat x3 / [*Min]) History --------- Turn | Location | Event 42 | -11/Scrapyard | Discovered new exit (range 14) 61 | -11/Scrapyard | Entered Materials 154 | -10/Materials | Identified exit to Materials 213 | -10/Materials | Discovered new exit (range 7) 301 | -10/Materials | Build established: Mutant 504 | -10/Materials | Core integrity fell below 50% 512 | -10/Materials | Core integrity fell below 20% 540 | -10/Materials | Lost 6 parts (1p2n1u2w) 549 | -10/Materials | Destroyed by G-47 Trooper via exploding Nuclear Reactor Last Messages --------------- 00481_ Acquired Targeting Computer. 00486_ K-01 Serf cleans the Pressure Siphon. 00496_ Aluminum Leg destroyed. 00499_ K-01 Serf cleans the Pressure Siphon. 00500_ Aluminum Leg destroyed. 00502_ Slammed into G-34 Mercenary. 00502_ Destabilizing: System corrupted (+1). 00505_ Weapon Shielding destroyed. 00508_ Assault Rifle destroyed. 00509_ Spread Laser destroyed. 00509_ Ion Engine destroyed. 00532_ Acquired Ion Engine. 00539_ M-13 Machinist repairs G-34 Mercenary. 00542_ G-34 Mercenary destroyed. 00542_ Switching to secondary target: G-34 Mercenary. 00546_ G-34 Mercenary IFF system glitched. 00548_ G-34 Mercenary destroyed. 00549_ Nuclear Reactor explodes. Map ----- +----------------------------------------------------+ | ?????????????????????????????????????????????????? | | ?????????????????????????????????????????????????? | | ?????????????????????????????????????????????????? | | ?????????????????????????????????????????????????? | | ?????????????????????????????????????????????????? | | ?????????????????????????" ?????????????????????? | | ?????????????????????????" ???????????????###### | | ???????????????????????""" ???????????????# """ | | ?????????????????????? ??????????????# "R" | | ?????????????????????? ??????????????# " " | | ????????????????????? ?????????????# | | ?????????????????????? ?????????????#= | | ?????????????????????# #####??????### | | ?????????????????????# ######## # # | | ?????????????????????# | | ????????????????????? | | ????????????????????????????#### | | ????????????????????????????#### ######## ### # | | ????????????????????????????#""" #?????######## | | ????????????????????????????#" #????????????? | | ????????????????????????????#"| #????????????? | | ????????????????????????????#"" < #????????????? | | ????????????????????????????#"! #????????????? | | ????????????????????#######?#" #????????????? | | ????????????????????#== ! #?#""" #????????????? | | ????????????????????#*g[ @#?#### ##########????? | | ????????????????????# ###### # #????? | | ????????????????????# # %+ #????? | | ????????????????????# g# # % #????? | | ????????????????????# m g#^ """" # #????? | | ????????????????????# g# """" # ###### | | ????????????? #######g## """" # # | | ???????????# T % # # T | | ????????????? " + # ! | | ???????????# % # # | | ???????????# """ ########+######+##+# / | | ???????????##### """ "??# % ## # | | ???????????????# """ "??# T ## ##+##+ | | ???????????????# T??# ## % | | ???????????????#?? "??# """ """ ## ### | | ????????????????? "??# """ """ ## #?? | | ???????????????? #??# """ """ ## #?? | | ???????????????? ???# ## #######?? | | ???????????????######+###???# ?## #???????? | | ?????????????????????????????########??# #???????? | | ??????????????????????????????????###### #???##### | | ??????????????????????????????????#== ## ##### | | ??????????????????????????????????#== | | ??????????????????????????????????#[ | | ?